2CCN - Level 2 Cost Centre Name,,9CCN - Level 9 Cost Centre Name,9CCC - Level 9 Cost Centre Code,9AN - Level 9 Account Name,9AC - Level 9 Account Code,Date posted,Date of transaction,Merchant Name,Merchant City,Merchant State,Merchant Zip Code,Originating Account Name,Originating Account Number,MCC/SIC Code,MCC Description,Original Amount,Currency,Conversion Rate,Billed Amount,Debit Credit,Reference Number,Statement Cycle,Account Name
Gloucester City Council,23UE,Museum of Gloucester,MU002,General Supplies/Materials,3025,06/08/2018,03/08/2018,AMZN MKTP UK AMAZON.CO,AMAZON.CO.UK,LUX,,REDACTED,556*********2362,5942,BOOK STORES,35.41,Pound Sterling (826),1,35.41,Debit,8.53892E+22,02/09/2018,GLOUCESTER CC
Gloucester City Council,23UE,Museum of Gloucester,MU002,Catering Provisions,3103,06/08/2018,04/08/2018,ASDA SUPERSTORE,GLOUCESTER,GBR,GL1 1DS,REDACTED,556*********2362,5411,"GROCERY STORES, SUPERMARKETS",26.07,Pound Sterling (826),1,26.07,Debit,1.53778E+22,02/09/2018,GLOUCESTER CC
Gloucester City Council,23UE,Museum of Gloucester,MU002,General Supplies/Materials,3025,06/08/2018,05/08/2018,AMZN MKTP UK AMAZON.CO,AMAZON.CO.UK,LUX,,REDACTED,556*********2362,5942,BOOK STORES,10.48,Pound Sterling (826),1,10.48,Debit,8.53892E+22,02/09/2018,GLOUCESTER CC
Gloucester City Council,23UE,Museum of Gloucester,MU002,General Supplies/Materials,3025,15/08/2018,14/08/2018,ALL POND SOLUTIONS,UXBRIDGE,GBR,UB8 2YF,REDACTED,556*********2362,5995,PET SHOPS-PET FOOD AND SUPPLY STORES,43.48,Pound Sterling (826),1,43.48,Debit,1.52763E+22,02/09/2018,GLOUCESTER CC
Gloucester City Council,23UE,Museum of Gloucester,MU002,Catering Provisions,3103,15/08/2018,14/08/2018,ASDA SUPERSTORE,GLOUCESTER,GBR,GL1 1DS,REDACTED,556*********2362,5411,"GROCERY STORES, SUPERMARKETS",1.48,Pound Sterling (826),1,1.48,Debit,4.53778E+22,02/09/2018,GLOUCESTER CC
Gloucester City Council,23UE,Eastgate Market,MK003,Equipment and Furniture,3001,16/08/2018,15/08/2018,AMZN Mktp UK,800-279-6620,LUX,L2338,REDACTED,556*********2362,5942,BOOK STORES,26.97,Pound Sterling (826),1,26.97,Debit,5.52047E+22,02/09/2018,GLOUCESTER CC
Gloucester City Council,23UE,Eastgate Market,MK003,Equipment and Furniture,3001,17/08/2018,16/08/2018,WH SMITH,GLOUCESTER,GBR,GL1 1NZ,REDACTED,556*********2362,5994,NEWS DEALERS AND NEWSSTANDS,6.97,Pound Sterling (826),1,6.97,Debit,2.53778E+22,02/09/2018,GLOUCESTER CC
Gloucester City Council,23UE,Museum of Gloucester,MU002,General Supplies/Materials,3025,20/08/2018,17/08/2018,J & E NEVITT,WORCESTER,GBR,WR1 3LR,REDACTED,556*********2362,5722,HOUSEHOLD APPLIANCE STORES,7.8,Pound Sterling (826),1,7.8,Debit,5.27248E+21,02/09/2018,GLOUCESTER CC
Gloucester City Council,23UE,Gloucester Life Museum,MU005,Catering Provisions,3103,20/08/2018,17/08/2018,ASDA SUPERSTORE,GLOUCESTER,GBR,GL1 1DS,REDACTED,556*********2362,5411,"GROCERY STORES, SUPERMARKETS",1.09,Pound Sterling (826),1,1.09,Debit,4.53778E+22,02/09/2018,GLOUCESTER CC
Gloucester City Council,23UE,Eastgate Market,MK003,Equipment and Furniture,3001,20/08/2018,18/08/2018,Amazon.co.uk,AMAZON.CO.UK,LUX,L2338,REDACTED,556*********2362,5969,ALL OTHER DIRECT MARKETERS,18,Pound Sterling (826),1,18,Debit,5.52047E+22,02/09/2018,GLOUCESTER CC
Gloucester City Council,23UE,Museum of Gloucester,MU002,Catering Provisions,3103,20/08/2018,18/08/2018,ASDA SUPERSTORE,GLOUCESTER,GBR,GL1 1DS,REDACTED,556*********2362,5411,"GROCERY STORES, SUPERMARKETS",16.44,Pound Sterling (826),1,16.44,Debit,1.53778E+22,02/09/2018,GLOUCESTER CC
Gloucester City Council,23UE,Gloucester Life Museum,MU005,General Supplies/Materials,3025,20/08/2018,19/08/2018,AMZN Mktp UK,800-279-6620,LUX,L2338,REDACTED,556*********2362,5942,BOOK STORES,16.97,Pound Sterling (826),1,16.97,Debit,5.52047E+22,02/09/2018,GLOUCESTER CC
Gloucester City Council,23UE,Gloucester Life Museum,MU005,Catering Provisions,3103,27/08/2018,25/08/2018,ASDA SUPERSTORE,GLOUCESTER,GBR,GL1 1DS,REDACTED,556*********2362,5411,"GROCERY STORES, SUPERMARKETS",9.46,Pound Sterling (826),1,9.46,Debit,1.53778E+22,02/09/2018,GLOUCESTER CC
Gloucester City Council,23UE,Eastgate Market,MK003,Equipment and Furniture,3001,28/08/2018,27/08/2018,AMZN Mktp UK,800-279-6620,LUX,L2338,REDACTED,556*********2362,5942,BOOK STORES,13.48,Pound Sterling (826),1,13.48,Debit,5.52047E+22,02/09/2018,GLOUCESTER CC
Gloucester City Council,23UE,Eastgate Market,MK003,Equipment and Furniture,3001,29/08/2018,28/08/2018,AMZN Mktp UK,800-279-6620,LUX,L2338,REDACTED,556*********2362,5942,BOOK STORES,11.5,Pound Sterling (826),1,11.5,Debit,5.52047E+22,02/09/2018,GLOUCESTER CC
Gloucester City Council,23UE,Eastgate Market,MK003,Equipment and Furniture,3001,29/08/2018,28/08/2018,AMZN Mktp UK,800-279-6620,LUX,L2338,REDACTED,556*********2362,5942,BOOK STORES,1.99,Pound Sterling (826),1,1.99,Debit,5.52047E+22,02/09/2018,GLOUCESTER CC
Gloucester City Council,23UE,Eastgate Market,MK003,Equipment and Furniture,3001,29/08/2018,28/08/2018,AMZN MKTP UK AMAZON.CO,AMAZON.CO.UK,LUX,,REDACTED,556*********2362,5942,BOOK STORES,6.8,Pound Sterling (826),1,6.8,Debit,8.53892E+22,02/09/2018,GLOUCESTER CC
Gloucester City Council,23UE,Museum of Gloucester,MU002,General Supplies/Materials,3025,30/08/2018,29/08/2018,WH SMITH,GLOUCESTER,GBR,GL1 1NZ,REDACTED,556*********2362,5994,NEWS DEALERS AND NEWSSTANDS,12.96,Pound Sterling (826),1,12.96,Debit,2.53778E+22,02/09/2018,GLOUCESTER CC
Gloucester City Council,23UE,Museum of Gloucester,MU002,Catering Provisions,3103,31/08/2018,30/08/2018,ASDA SUPERSTORE,GLOUCESTER,GBR,GL1 1DS,REDACTED,556*********2362,5411,"GROCERY STORES, SUPERMARKETS",11.5,Pound Sterling (826),1,11.5,Debit,4.53778E+22,02/09/2018,GLOUCESTER CC
Gloucester City Council,23UE,Managing Director & Directors,MT001,Equipment and Furniture,3001,06/08/2018,05/08/2018,APPLE ONLINE STORE GBP,0845-600-1683,IRL,UNKNOWN,REDACTED,556*********1418,5732,ELECTRONIC SALES,58,Pound Sterling (826),1,58,Debit,5.52047E+22,02/09/2018,GLOUCESTER CC
Gloucester City Council,23UE,Managing Director & Directors,MT001,Conference Fees,553,24/08/2018,23/08/2018,WESTMINSTER FORUM,BRACKNELL,,RG12 7BW,REDACTED,556*********1418,7392,"MANAGEMENT, CONSULTING AND PUBLIC RELATIONS SERVICES",276,Pound Sterling (826),1,276,Debit,5.55044E+22,02/09/2018,GLOUCESTER CC
Gloucester City Council,23UE,Countryside Unit,EP003,Vehicle Repairs and Maintenance,2103,14/08/2018,13/08/2018,TOWING AND TRAILERS LT,WORKSOP,GBR,S80 3EZ,REDACTED,556*********6734,5561,"RECREATIONAL AND UTILITY TRAILER, CAMPER DEALERS",92.86,Pound Sterling (826),1,92.86,Debit,1.51226E+22,02/09/2018,GLOUCESTER CC
Gloucester City Council,23UE,The Arbor,CC001,Equipment and Furniture,3001,07/08/2018,06/08/2018,AMZN Mktp UK,800-279-6620,LUX,L2338,REDACTED,556*********1155,5942,BOOK STORES,11.18,Pound Sterling (826),1,11.18,Debit,5.52047E+22,02/09/2018,GLOUCESTER CC
Gloucester City Council,23UE,The Arbor,CC001,Equipment and Furniture,3001,07/08/2018,07/08/2018,AMZN Mktp UK,800-279-6620,LUX,L2338,REDACTED,556*********1155,5942,BOOK STORES,18.54,Pound Sterling (826),1,18.54,Debit,5.52047E+22,02/09/2018,GLOUCESTER CC
Gloucester City Council,23UE,The Arbor,CC001,Equipment and Furniture,3001,08/08/2018,07/08/2018,AMZN Mktp UK,800-279-6620,LUX,L2338,REDACTED,556*********1155,5942,BOOK STORES,17,Pound Sterling (826),1,17,Debit,5.52047E+22,02/09/2018,GLOUCESTER CC
Gloucester City Council,23UE,Guildhall Bar and Cafe,GH005,Catering Provisions,3103,09/08/2018,08/08/2018,ICELAND,GLOUCESTER,GBR,GL1 1SA,REDACTED,556*********1155,5411,"GROCERY STORES, SUPERMARKETS",3.05,Pound Sterling (826),1,3.05,Debit,2.53778E+22,02/09/2018,GLOUCESTER CC
Gloucester City Council,23UE,Blackfriars Weddings,GH011,Catering Provisions,3103,20/08/2018,17/08/2018,SAINSBURYS 0608,BARNWOOD,GBR,GL4 3RT,REDACTED,556*********1155,5411,"GROCERY STORES, SUPERMARKETS",29.45,Pound Sterling (826),1,29.45,Debit,2.54252E+22,02/09/2018,GLOUCESTER CC
Gloucester City Council,23UE,Blackfriars Weddings,GH011,Catering Provisions,3103,20/08/2018,17/08/2018,TESCO STORE 2581,GLOUCESTER,GBR,GL1 2SR,REDACTED,556*********1155,5411,"GROCERY STORES, SUPERMARKETS",2.3,Pound Sterling (826),1,2.3,Debit,4.53778E+22,02/09/2018,GLOUCESTER CC
Gloucester City Council,23UE,Blackfriars Weddings,GH011,Catering Provisions,3103,20/08/2018,17/08/2018,BOOKER LIMITED GLOUCES,GLOUCESTER,GBR,GL4 3RT,REDACTED,556*********1155,5811,CATERERS,145.82,Pound Sterling (826),1,145.82,Debit,5.51842E+22,02/09/2018,GLOUCESTER CC
Gloucester City Council,23UE,Guildhall Bar and Cafe,GH005,Catering Provisions,3103,23/08/2018,22/08/2018,ICELAND,GLOUCESTER,GBR,GL1 1SA,REDACTED,556*********1155,5411,"GROCERY STORES, SUPERMARKETS",7.75,Pound Sterling (826),1,7.75,Debit,2.53778E+22,02/09/2018,GLOUCESTER CC
Gloucester City Council,23UE,Guildhall Bar and Cafe,GH005,Catering Provisions,3103,27/08/2018,24/08/2018,SAINSBURYS SACAT 0771,GLOUCESTER,GBR,GL1 2AG,REDACTED,556*********1155,5411,"GROCERY STORES, SUPERMARKETS",13.42,Pound Sterling (826),1,13.42,Debit,2.54252E+22,02/09/2018,GLOUCESTER CC
Gloucester City Council,23UE,Guildhall Bar and Cafe,GH005,Equipment and Furniture,3001,31/08/2018,30/08/2018,AMZN Mktp UK,800-279-6620,LUX,L2338,REDACTED,556*********1155,5942,BOOK STORES,13.99,Pound Sterling (826),1,13.99,Debit,5.52047E+22,02/09/2018,GLOUCESTER CC
Gloucester City Council,23UE,Blackfriars Weddings,GH011,Catering Provisions,3103,31/08/2018,30/08/2018,TESCO STORES (6819),GLOUCESTER,GBR,GL1 1TP,REDACTED,556*********1155,5411,"GROCERY STORES, SUPERMARKETS",12,Pound Sterling (826),1,12,Debit,6.53778E+22,02/09/2018,GLOUCESTER CC
Gloucester City Council,23UE,Guildhall Bar and Cafe,GH005,Catering Provisions,3103,31/08/2018,30/08/2018,TESCO STORES (6819),GLOUCESTER,GBR,GL1 1TP,REDACTED,556*********1155,5411,"GROCERY STORES, SUPERMARKETS",4.5,Pound Sterling (826),1,4.5,Debit,6.53778E+22,02/09/2018,GLOUCESTER CC
Gloucester City Council,23UE,Guildhall Bar and Cafe,GH005,Catering Provisions,3103,31/08/2018,30/08/2018,TESCO STORES (6819),GLOUCESTER,GBR,GL1 1TP,REDACTED,556*********1155,5411,"GROCERY STORES, SUPERMARKETS",0.5,Pound Sterling (826),1,0.5,Debit,6.53778E+22,02/09/2018,GLOUCESTER CC
Gloucester City Council,23UE,Blackfriars Weddings,GH011,Catering Provisions,3103,31/08/2018,30/08/2018,BOOKER LIMITED GLOUCES,GLOUCESTER,GBR,GL4 3RT,REDACTED,556*********1155,5811,CATERERS,149.59,Pound Sterling (826),1,149.59,Debit,5.51842E+22,02/09/2018,GLOUCESTER CC
Gloucester City Council,23UE,Blackfriars ,GH010,Equipment and Furniture,3001,31/08/2018,30/08/2018,B&M RETAIL LTD,HS GLOUCESTER,,GL12DH,REDACTED,556*********1155,5310,DISCOUNT STORES,4.04,Pound Sterling (826),1,4.04,Debit,8.54815E+22,02/09/2018,GLOUCESTER CC
Gloucester City Council,23UE,Eastgate Market,MK003,General Supplies/Materials,3025,03/08/2018,01/08/2018,HTTP://WWW.PRIMATEL.CO,LONDON SW16,,SW16 4RW,REDACTED,556*********8997,7399,BUSINESS SERVICES NOT ELSEWHERE CLASSIFIED,29.77,Pound Sterling (826),1,29.77,Debit,5.52033E+22,02/09/2018,GLOUCESTER CC
Gloucester City Council,23UE,Shopmobility,SM001,General Supplies/Materials,3025,03/08/2018,01/08/2018,HTTP://WWW.PRIMATEL.CO,LONDON SW16,,SW16 4RW,REDACTED,,,,29.77,Pound Sterling (826),1,29.77,Debit,5.52033E+22,02/09/2018,GLOUCESTER CC
Gloucester City Council,23UE,Docks Complex - Services,AM006,Equipment and Furniture,3001,20/08/2018,17/08/2018,B & Q 1179,GLOUCESTER,,GL12SG,REDACTED,556*********4301,5211,LUMBER AND BUILDING MATERIALS STORES,35.88,Pound Sterling (826),1,35.88,Debit,8.54815E+22,02/09/2018,GLOUCESTER CC
Gloucester City Council,23UE,Docks Complex - Services,AM006,Building Repairs and Maintenance,1001,03/08/2018,02/08/2018,TIMPSON LTD,QUEDGLEY,,GL2 4PF,REDACTED,556*********6128,7251,"SHOE REPAIR SHOPS, SHOE SHINE PARLORS & HAT CLEANING SHOPS",13.5,Pound Sterling (826),1,13.5,Debit,8.54815E+22,02/09/2018,GLOUCESTER CC
Gloucester City Council,23UE,Housing Services,HS001,Public Transport - Staff,2402,03/08/2018,01/08/2018,Trainline,London,GBR,1445,REDACTED,556*********6959,4112,PASSENGER RAILWAYS,167.8,Pound Sterling (826),1,167.8,Debit,8.51301E+22,02/09/2018,GLOUCESTER CC
Gloucester City Council,23UE,Housing Services,HS001,B&B Payments,1303,03/08/2018,01/08/2018,TRAVELODGE GB0000,THAME,,OX9 3AT,REDACTED,556*********6959,3615,TRAVELODGE,286,Pound Sterling (826),1,286,Debit,5.55044E+22,02/09/2018,GLOUCESTER CC
Gloucester City Council,23UE,Housing Services,HS001,B&B Payments,1303,03/08/2018,02/08/2018,TRAVELODGE GB0000,THAME,,OX9 3AT,REDACTED,556*********6959,3615,TRAVELODGE,349,Pound Sterling (826),1,349,Debit,5.55044E+22,02/09/2018,GLOUCESTER CC
Gloucester City Council,23UE,Housing Services,HS001,B&B Payments,1303,03/08/2018,02/08/2018,TRAVELODGE GB0000,THAME,,OX9 3AT,REDACTED,556*********6959,3615,TRAVELODGE,284,Pound Sterling (826),1,284,Debit,5.55044E+22,02/09/2018,GLOUCESTER CC
Gloucester City Council,23UE,Housing Services,HS001,B&B Payments,1303,03/08/2018,02/08/2018,TRAVELODGE GB0000,THAME,,OX9 3AT,REDACTED,556*********6959,3615,TRAVELODGE,439,Pound Sterling (826),1,439,Debit,5.55044E+22,02/09/2018,GLOUCESTER CC
Gloucester City Council,23UE,Housing Services,HS001,B&B Payments,1303,03/08/2018,02/08/2018,TRAVELODGE GB0000,THAME,,OX9 3AT,REDACTED,556*********6959,3615,TRAVELODGE,340,Pound Sterling (826),1,340,Debit,5.55044E+22,02/09/2018,GLOUCESTER CC
Gloucester City Council,23UE,Housing Services,HS001,Mileage and Travel Allowances,2401,03/08/2018,02/08/2018,NATIONAL EXPRESS LIMIT,BIRMINGHAM,,B5 6DD,REDACTED,556*********6959,4131,"BUS LINES, CHARTERS, TOUR BUSES",10.8,Pound Sterling (826),1,10.8,Debit,8.54815E+22,02/09/2018,GLOUCESTER CC
Gloucester City Council,23UE,Housing Services,HS001,Books & Publications,3401,03/08/2018,01/08/2018,PAYPAL *LAG,35314369001,GBR,TW91EH,REDACTED,556*********6959,8398,CHARITABLE AND SOCIAL SERVICE ORGANIZATIONS,-65.2,Pound Sterling (826),1,-65.2,Credit,8.51301E+22,02/09/2018,GLOUCESTER CC
Gloucester City Council,23UE,Housing Services,HS001,B&B Payments,1303,06/08/2018,03/08/2018,TRAVELODGE GB0000,THAME,,OX9 3AT,REDACTED,556*********6959,3615,TRAVELODGE,205,Pound Sterling (826),1,205,Debit,5.55044E+22,02/09/2018,GLOUCESTER CC
Gloucester City Council,23UE,Housing Services,HS001,B&B Payments,1303,06/08/2018,03/08/2018,TRAVELODGE GB0000,THAME,,OX9 3AT,REDACTED,556*********6959,3615,TRAVELODGE,424,Pound Sterling (826),1,424,Debit,5.55044E+22,02/09/2018,GLOUCESTER CC
Gloucester City Council,23UE,Housing Services,HS001,B&B Payments,1303,07/08/2018,06/08/2018,TRAVELODGE GB0000,THAME,,OX9 3AT,REDACTED,556*********6959,3615,TRAVELODGE,256,Pound Sterling (826),1,256,Debit,5.55044E+22,02/09/2018,GLOUCESTER CC
Gloucester City Council,23UE,Housing Services,HS001,B&B Payments,1303,07/08/2018,06/08/2018,TRAVELODGE GB0000,THAME,,OX9 3AT,REDACTED,556*********6959,3615,TRAVELODGE,312,Pound Sterling (826),1,312,Debit,5.55044E+22,02/09/2018,GLOUCESTER CC
Gloucester City Council,23UE,Housing Services,HS001,B&B Payments,1303,08/08/2018,07/08/2018,TRAVELODGE GB0000,THAME,,OX9 3AT,REDACTED,556*********6959,3615,TRAVELODGE,251,Pound Sterling (826),1,251,Debit,5.55044E+22,02/09/2018,GLOUCESTER CC
Gloucester City Council,23UE,Housing Services,HS001,B&B Payments,1303,08/08/2018,07/08/2018,TRAVELODGE GB0000,THAME,,OX9 3AT,REDACTED,556*********6959,3615,TRAVELODGE,364,Pound Sterling (826),1,364,Debit,5.55044E+22,02/09/2018,GLOUCESTER CC
Gloucester City Council,23UE,Housing Services,HS001,B&B Payments,1303,09/08/2018,08/08/2018,TRAVELODGE GB0000,THAME,,OX9 3AT,REDACTED,556*********6959,3615,TRAVELODGE,355,Pound Sterling (826),1,355,Debit,5.55044E+22,02/09/2018,GLOUCESTER CC
Gloucester City Council,23UE,Housing Services,HS001,B&B Payments,1303,09/08/2018,08/08/2018,TRAVELODGE GB0000,THAME,,OX9 3AT,REDACTED,556*********6959,3615,TRAVELODGE,118,Pound Sterling (826),1,118,Debit,5.55044E+22,02/09/2018,GLOUCESTER CC
Gloucester City Council,23UE,Housing Services,HS001,B&B Payments,1303,10/08/2018,09/08/2018,TRAVELODGE GB0000,THAME,,OX9 3AT,REDACTED,556*********6959,3615,TRAVELODGE,249,Pound Sterling (826),1,249,Debit,5.55044E+22,02/09/2018,GLOUCESTER CC
Gloucester City Council,23UE,Housing Services,HS001,B&B Payments,1303,10/08/2018,09/08/2018,TRAVELODGE GB0000,THAME,,OX9 3AT,REDACTED,556*********6959,3615,TRAVELODGE,472,Pound Sterling (826),1,472,Debit,5.55044E+22,02/09/2018,GLOUCESTER CC
Gloucester City Council,23UE,Housing Services,HS001,B&B Payments,1303,14/08/2018,13/08/2018,TRAVELODGE GB0000,THAME,,OX9 3AT,REDACTED,556*********6959,3615,TRAVELODGE,246,Pound Sterling (826),1,246,Debit,5.55044E+22,02/09/2018,GLOUCESTER CC
Gloucester City Council,23UE,Housing Services,HS001,B&B Payments,1303,14/08/2018,13/08/2018,TRAVELODGE GB0000,THAME,,OX9 3AT,REDACTED,556*********6959,3615,TRAVELODGE,187,Pound Sterling (826),1,187,Debit,5.55044E+22,02/09/2018,GLOUCESTER CC
Gloucester City Council,23UE,Housing Services,HS001,B&B Payments,1303,14/08/2018,13/08/2018,TRAVELODGE GB0000,THAME,,OX9 3AT,REDACTED,556*********6959,3615,TRAVELODGE,148,Pound Sterling (826),1,148,Debit,5.55044E+22,02/09/2018,GLOUCESTER CC
Gloucester City Council,23UE,Housing Services,HS001,B&B Payments,1303,14/08/2018,13/08/2018,TRAVELODGE GB0000,THAME,,OX9 3AT,REDACTED,556*********6959,3615,TRAVELODGE,108,Pound Sterling (826),1,108,Debit,5.55044E+22,02/09/2018,GLOUCESTER CC
Gloucester City Council,23UE,Housing Services,HS001,B&B Payments,1303,14/08/2018,13/08/2018,TRAVELODGE GB0000,THAME,,OX9 3AT,REDACTED,556*********6959,3615,TRAVELODGE,488,Pound Sterling (826),1,488,Debit,5.55044E+22,02/09/2018,GLOUCESTER CC
Gloucester City Council,23UE,Housing Services,HS001,B&B Payments,1303,14/08/2018,13/08/2018,TRAVELODGE GB0000,THAME,,OX9 3AT,REDACTED,556*********6959,3615,TRAVELODGE,216,Pound Sterling (826),1,216,Debit,5.55044E+22,02/09/2018,GLOUCESTER CC
Gloucester City Council,23UE,Housing Services,HS001,B&B Payments,1303,14/08/2018,13/08/2018,TRAVELODGE GB0000,THAME,,OX9 3AT,REDACTED,556*********6959,3615,TRAVELODGE,-54,Pound Sterling (826),1,-54,Credit,5.55044E+22,02/09/2018,GLOUCESTER CC
Gloucester City Council,23UE,Housing Services,HS001,B&B Payments,1303,14/08/2018,13/08/2018,TRAVELODGE GB0000,THAME,,OX9 3AT,REDACTED,556*********6959,3615,TRAVELODGE,-54,Pound Sterling (826),1,-54,Credit,5.55044E+22,02/09/2018,GLOUCESTER CC
Gloucester City Council,23UE,Housing Services,HS001,B&B Payments,1303,15/08/2018,14/08/2018,TRAVELODGE GB0000,THAME,,OX9 3AT,REDACTED,556*********6959,3615,TRAVELODGE,67,Pound Sterling (826),1,67,Debit,5.55044E+22,02/09/2018,GLOUCESTER CC
Gloucester City Council,23UE,Housing Services,HS001,B&B Payments,1303,16/08/2018,15/08/2018,TRAVELODGE GB0000,THAME,,OX9 3AT,REDACTED,556*********6959,3615,TRAVELODGE,280,Pound Sterling (826),1,280,Debit,5.55044E+22,02/09/2018,GLOUCESTER CC
Gloucester City Council,23UE,Housing Services,HS001,B&B Payments,1303,17/08/2018,16/08/2018,TRAVELODGE GB0000,THAME,,OX9 3AT,REDACTED,556*********6959,3615,TRAVELODGE,296,Pound Sterling (826),1,296,Debit,5.55044E+22,02/09/2018,GLOUCESTER CC
Gloucester City Council,23UE,Housing Services,HS001,Mileage and Travel Allowances,2401,17/08/2018,16/08/2018,NATIONAL EXPRESS LIMIT,BIRMINGHAM,,B5 6DD,REDACTED,556*********6959,4131,"BUS LINES, CHARTERS, TOUR BUSES",21.5,Pound Sterling (826),1,21.5,Debit,8.54815E+22,02/09/2018,GLOUCESTER CC
Gloucester City Council,23UE,Housing Services,HS001,B&B Payments,1303,20/08/2018,17/08/2018,TRAVELODGE GB0000,THAME,,OX9 3AT,REDACTED,556*********6959,3615,TRAVELODGE,283,Pound Sterling (826),1,283,Debit,5.55044E+22,02/09/2018,GLOUCESTER CC
Gloucester City Council,23UE,Housing Services,HS001,B&B Payments,1303,20/08/2018,17/08/2018,TRAVELODGE GB0000,THAME,,OX9 3AT,REDACTED,556*********6959,3615,TRAVELODGE,374,Pound Sterling (826),1,374,Debit,5.55044E+22,02/09/2018,GLOUCESTER CC
Gloucester City Council,23UE,Housing Services,HS001,B&B Payments,1303,20/08/2018,17/08/2018,TRAVELODGE GB0000,THAME,,OX9 3AT,REDACTED,556*********6959,3615,TRAVELODGE,197,Pound Sterling (826),1,197,Debit,5.55044E+22,02/09/2018,GLOUCESTER CC
Gloucester City Council,23UE,Housing Services,HS001,B&B Payments,1303,21/08/2018,20/08/2018,TRAVELODGE GB0000,THAME,,OX9 3AT,REDACTED,556*********6959,3615,TRAVELODGE,112,Pound Sterling (826),1,112,Debit,5.55044E+22,02/09/2018,GLOUCESTER CC
Gloucester City Council,23UE,Housing Services,HS001,B&B Payments,1303,21/08/2018,20/08/2018,TRAVELODGE GB0000,THAME,,OX9 3AT,REDACTED,556*********6959,3615,TRAVELODGE,54,Pound Sterling (826),1,54,Debit,5.55044E+22,02/09/2018,GLOUCESTER CC
Gloucester City Council,23UE,Housing Services,HS001,B&B Payments,1303,21/08/2018,20/08/2018,TRAVELODGE GB0000,THAME,,OX9 3AT,REDACTED,556*********6959,3615,TRAVELODGE,261,Pound Sterling (826),1,261,Debit,5.55044E+22,02/09/2018,GLOUCESTER CC
Gloucester City Council,23UE,Housing Services,HS001,B&B Payments,1303,22/08/2018,21/08/2018,TRAVELODGE GB0000,THAME,,OX9 3AT,REDACTED,556*********6959,3615,TRAVELODGE,232,Pound Sterling (826),1,232,Debit,5.55044E+22,02/09/2018,GLOUCESTER CC
Gloucester City Council,23UE,Housing Services,HS001,B&B Payments,1303,22/08/2018,21/08/2018,TRAVELODGE GB0000,THAME,,OX9 3AT,REDACTED,556*********6959,3615,TRAVELODGE,400,Pound Sterling (826),1,400,Debit,5.55044E+22,02/09/2018,GLOUCESTER CC
Gloucester City Council,23UE,Housing Services,HS001,B&B Payments,1303,22/08/2018,21/08/2018,TRAVELODGE GB0000,THAME,,OX9 3AT,REDACTED,556*********6959,3615,TRAVELODGE,202,Pound Sterling (826),1,202,Debit,5.55044E+22,02/09/2018,GLOUCESTER CC
Gloucester City Council,23UE,Housing Services,HS001,B&B Payments,1303,22/08/2018,21/08/2018,TRAVELODGE GB0000,THAME,,OX9 3AT,REDACTED,556*********6959,3615,TRAVELODGE,337,Pound Sterling (826),1,337,Debit,5.55044E+22,02/09/2018,GLOUCESTER CC
Gloucester City Council,23UE,Housing Services,HS001,B&B Payments,1303,22/08/2018,21/08/2018,TRAVELODGE GB0000,THAME,,OX9 3AT,REDACTED,556*********6959,3615,TRAVELODGE,-283,Pound Sterling (826),1,-283,Credit,5.55044E+22,02/09/2018,GLOUCESTER CC
Gloucester City Council,23UE,Housing Services,HS001,B&B Payments,1303,23/08/2018,22/08/2018,TRAVELODGE GB0000,THAME,,OX9 3AT,REDACTED,556*********6959,3615,TRAVELODGE,275,Pound Sterling (826),1,275,Debit,5.55044E+22,02/09/2018,GLOUCESTER CC
Gloucester City Council,23UE,Housing Services,HS001,B&B Payments,1303,23/08/2018,22/08/2018,TRAVELODGE GB0000,THAME,,OX9 3AT,REDACTED,556*********6959,3615,TRAVELODGE,329,Pound Sterling (826),1,329,Debit,5.55044E+22,02/09/2018,GLOUCESTER CC
Gloucester City Council,23UE,Housing Services,HS001,B&B Payments,1303,23/08/2018,22/08/2018,TRAVELODGE GB0000,THAME,,OX9 3AT,REDACTED,556*********6959,3615,TRAVELODGE,71,Pound Sterling (826),1,71,Debit,5.55044E+22,02/09/2018,GLOUCESTER CC
Gloucester City Council,23UE,Housing Services,HS001,B&B Payments,1303,23/08/2018,22/08/2018,TRAVELODGE GB0000,THAME,,OX9 3AT,REDACTED,556*********6959,3615,TRAVELODGE,-275,Pound Sterling (826),1,-275,Credit,5.55044E+22,02/09/2018,GLOUCESTER CC
Gloucester City Council,23UE,Housing Services,HS001,B&B Payments,1303,24/08/2018,23/08/2018,TRAVELODGE GB0000,THAME,,OX9 3AT,REDACTED,556*********6959,3615,TRAVELODGE,333,Pound Sterling (826),1,333,Debit,5.55044E+22,02/09/2018,GLOUCESTER CC
Gloucester City Council,23UE,Housing Services,HS001,B&B Payments,1303,24/08/2018,23/08/2018,TRAVELODGE GB0000,THAME,,OX9 3AT,REDACTED,556*********6959,3615,TRAVELODGE,389,Pound Sterling (826),1,389,Debit,5.55044E+22,02/09/2018,GLOUCESTER CC
Gloucester City Council,23UE,Housing Services,HS001,B&B Payments,1303,24/08/2018,23/08/2018,TRAVELODGE GB0000,THAME,,OX9 3AT,REDACTED,556*********6959,3615,TRAVELODGE,162,Pound Sterling (826),1,162,Debit,5.55044E+22,02/09/2018,GLOUCESTER CC
Gloucester City Council,23UE,Housing Services,HS001,B&B Payments,1303,24/08/2018,23/08/2018,TRAVELODGE GB0000,THAME,,OX9 3AT,REDACTED,556*********6959,3615,TRAVELODGE,119,Pound Sterling (826),1,119,Debit,5.55044E+22,02/09/2018,GLOUCESTER CC
Gloucester City Council,23UE,Housing Services,HS001,B&B Payments,1303,24/08/2018,23/08/2018,TRAVELODGE GB0000,THAME,,OX9 3AT,REDACTED,556*********6959,3615,TRAVELODGE,438,Pound Sterling (826),1,438,Debit,5.55044E+22,02/09/2018,GLOUCESTER CC
Gloucester City Council,23UE,Housing Services,HS001,B&B Payments,1303,24/08/2018,23/08/2018,TRAVELODGE GB0000,THAME,,OX9 3AT,REDACTED,556*********6959,3615,TRAVELODGE,320,Pound Sterling (826),1,320,Debit,5.55044E+22,02/09/2018,GLOUCESTER CC
Gloucester City Council,23UE,Housing Services,HS001,B&B Payments,1303,24/08/2018,23/08/2018,TRAVELODGE GB0000,THAME,,OX9 3AT,REDACTED,556*********6959,3615,TRAVELODGE,320,Pound Sterling (826),1,320,Debit,5.55044E+22,02/09/2018,GLOUCESTER CC
Gloucester City Council,23UE,Housing Services,HS001,B&B Payments,1303,30/08/2018,29/08/2018,TRAVELODGE GB0000,THAME,,OX9 3AT,REDACTED,556*********6959,3615,TRAVELODGE,234,Pound Sterling (826),1,234,Debit,5.55044E+22,02/09/2018,GLOUCESTER CC
Gloucester City Council,23UE,Housing Services,HS001,B&B Payments,1303,30/08/2018,29/08/2018,TRAVELODGE GB0000,THAME,,OX9 3AT,REDACTED,556*********6959,3615,TRAVELODGE,240,Pound Sterling (826),1,240,Debit,5.55044E+22,02/09/2018,GLOUCESTER CC
Gloucester City Council,23UE,Housing Services,HS001,B&B Payments,1303,30/08/2018,29/08/2018,TRAVELODGE GB0000,THAME,,OX9 3AT,REDACTED,556*********6959,3615,TRAVELODGE,228,Pound Sterling (826),1,228,Debit,5.55044E+22,02/09/2018,GLOUCESTER CC
Gloucester City Council,23UE,Housing Services,HS001,B&B Payments,1303,31/08/2018,30/08/2018,TRAVELODGE GB0000,THAME,,OX9 3AT,REDACTED,556*********6959,3615,TRAVELODGE,315,Pound Sterling (826),1,315,Debit,5.55044E+22,02/09/2018,GLOUCESTER CC
Gloucester City Council,23UE,Housing Services,HS001,B&B Payments,1303,31/08/2018,30/08/2018,TRAVELODGE GB0000,THAME,,OX9 3AT,REDACTED,556*********6959,3615,TRAVELODGE,384,Pound Sterling (826),1,384,Debit,5.55044E+22,02/09/2018,GLOUCESTER CC
Gloucester City Council,23UE,Housing Services,HS001,B&B Payments,1303,31/08/2018,30/08/2018,TRAVELODGE GB0000,THAME,,OX9 3AT,REDACTED,556*********6959,3615,TRAVELODGE,320,Pound Sterling (826),1,320,Debit,5.55044E+22,02/09/2018,GLOUCESTER CC
Gloucester City Council,23UE,Housing Services,HS001,B&B Payments,1303,31/08/2018,30/08/2018,TRAVELODGE GB0000,THAME,,OX9 3AT,REDACTED,556*********6959,3615,TRAVELODGE,83,Pound Sterling (826),1,83,Debit,5.55044E+22,02/09/2018,GLOUCESTER CC
Gloucester City Council,23UE,Gloucester Guildhall,GH001,General Supplies/Materials,3025,06/08/2018,03/08/2018,AMZN MKTP UK AMAZON.CO,AMAZON.CO.UK,LUX,,REDACTED,556*********8256,5942,BOOK STORES,3.9,Pound Sterling (826),1,3.9,Debit,8.53892E+22,02/09/2018,GLOUCESTER CC
Gloucester City Council,23UE,Gloucester Guildhall,GH001,General Supplies/Materials,3025,06/08/2018,05/08/2018,AMZN Mktp UK,800-279-6620,LUX,L2338,REDACTED,556*********8256,5942,BOOK STORES,17.27,Pound Sterling (826),1,17.27,Debit,5.52047E+22,02/09/2018,GLOUCESTER CC
Gloucester City Council,23UE,Gloucester Guildhall,GH001,General Supplies/Materials,3025,09/08/2018,08/08/2018,WILKO RETAIL LIMIT,GLOUCESTER 14,,GL11SL,REDACTED,556*********8256,5722,HOUSEHOLD APPLIANCE STORES,12,Pound Sterling (826),1,12,Debit,8.54815E+22,02/09/2018,GLOUCESTER CC
Gloucester City Council,23UE,Gloucester Guildhall,GH001,General Supplies/Materials,3025,09/08/2018,08/08/2018,WWW.INSTANTPRINT.C,01709 382202,,S63 5DR,REDACTED,556*********8256,7338,QUICK-COPY AND REPRODUCTION SERVICES,19.99,Pound Sterling (826),1,19.99,Debit,8.54815E+22,02/09/2018,GLOUCESTER CC
Gloucester City Council,23UE,Gloucester Guildhall,GH001,General Supplies/Materials,3025,13/08/2018,10/08/2018,SQUARESPACE INC.,6465803456,NY,10014,REDACTED,556*********8256,7372,COMPUTER AND DATA PROCESSING SERVICES,180,Pound Sterling (826),1,180,Debit,8.51215E+22,02/09/2018,GLOUCESTER CC
Gloucester City Council,23UE,Gloucester Guildhall,GH001,General Supplies/Materials,3025,20/08/2018,18/08/2018,MAILCHIMP *MONTHLY,MAILCHIMP.COM,GA,30308,REDACTED,556*********8256,5968,CONTINUITY/SUBSCRIPTION MERCHANTS,15.68,Pound Sterling (826),1,15.68,Debit,5.54254E+22,02/09/2018,GLOUCESTER CC
Gloucester City Council,23UE,Gloucester Guildhall,GH001,General Supplies/Materials,3025,20/08/2018,18/08/2018,FACEBK *H8T5ZGS9X2,fb.me/ads,IRL,UNKNOWN,REDACTED,556*********8256,7311,ADVERTISING SERVICES,149.99,Pound Sterling (826),1,149.99,Debit,5.52047E+22,02/09/2018,GLOUCESTER CC
Gloucester City Council,23UE,Gloucester Guildhall,GH001,General Supplies/Materials,3025,22/08/2018,16/08/2018,MIPERMIT LTD,INTERNET,GBR,SN15 5FD,REDACTED,556*********8256,7523,AUTOMOBILE PARKING LOTS AND GARAGES,10,Pound Sterling (826),1,10,Debit,2.54252E+22,02/09/2018,GLOUCESTER CC
Gloucester City Council,23UE,Gloucester Guildhall,GH001,General Supplies/Materials,3025,23/08/2018,22/08/2018,FACEBK *6WV6YGABG2,fb.me/ads,IRL,UNKNOWN,REDACTED,556*********8256,7311,ADVERTISING SERVICES,81.4,Pound Sterling (826),1,81.4,Debit,5.52047E+22,02/09/2018,GLOUCESTER CC
Gloucester City Council,23UE,Gloucester Guildhall,GH001,General Supplies/Materials,3025,23/08/2018,22/08/2018,WWW.ROOMSBOOKED.COM,INTERNET,GBR,GL50 4BA,REDACTED,556*********8256,7011,"LODGING, HOTELS, MOTELS, RESORTS",207,Pound Sterling (826),1,207,Debit,4.54252E+22,02/09/2018,GLOUCESTER CC
Gloucester City Council,23UE,Gloucester Guildhall,GH001,General Supplies/Materials,3025,30/08/2018,29/08/2018,FACEBK *FUA3GJJ9X2,fb.me/ads,IRL,UNKNOWN,REDACTED,556*********8256,7311,ADVERTISING SERVICES,200,Pound Sterling (826),1,200,Debit,5.52047E+22,02/09/2018,GLOUCESTER CC
Gloucester City Council,23UE,Gloucester Guildhall,GH001,General Supplies/Materials,3025,31/08/2018,30/08/2018,Amazon.co.uk,AMAZON.CO.UK,LUX,L2338,REDACTED,556*********8256,5969,ALL OTHER DIRECT MARKETERS,303.27,Pound Sterling (826),1,303.27,Debit,5.52047E+22,02/09/2018,GLOUCESTER CC
Gloucester City Council,23UE,Gloucester Guildhall,GH001,General Supplies/Materials,3025,31/08/2018,29/08/2018,MIPERMIT LTD,INTERNET,GBR,SN15 5FD,REDACTED,556*********8256,7523,AUTOMOBILE PARKING LOTS AND GARAGES,30,Pound Sterling (826),1,30,Debit,2.54252E+22,02/09/2018,GLOUCESTER CC
Gloucester City Council,23UE,Gloucester Guildhall,GH001,General Supplies/Materials,3025,31/08/2018,30/08/2018,WWW.INSTANTPRINT.C,01709 382202,,S63 5DR,REDACTED,556*********8256,7338,QUICK-COPY AND REPRODUCTION SERVICES,36.99,Pound Sterling (826),1,36.99,Debit,8.54815E+22,02/09/2018,GLOUCESTER CC
Gloucester City Council,23UE,Elections,DS004,Professional Advice/Consultants fees,3952,03/08/2018,02/08/2018,WWW.ICO.GOV.UK,03031231113 W,,SK95AF,REDACTED,556*********3063,9399,GOVERNMENT SERVICES NOT ELSEWHERE CLASSIFIED,60,Pound Sterling (826),1,60,Debit,8.54815E+22,02/09/2018,GLOUCESTER CC
Gloucester City Council,23UE,Business Transformation,BI006,Equipment and Furniture,3001,06/08/2018,04/08/2018,AMZN MKTP UK AMAZON.CO,AMAZON.CO.UK,LUX,,REDACTED,556*********3063,5942,BOOK STORES,39.96,Pound Sterling (826),1,39.96,Debit,8.53892E+22,02/09/2018,GLOUCESTER CC
Gloucester City Council,23UE,Business Transformation,BI006,Equipment and Furniture,3001,08/08/2018,07/08/2018,AMZN MKTP UK AMAZON.CO,AMAZON.CO.UK,LUX,,REDACTED,556*********3063,5942,BOOK STORES,49.98,Pound Sterling (826),1,49.98,Debit,8.53892E+22,02/09/2018,GLOUCESTER CC
Gloucester City Council,23UE,Docks Complex - Services,AM006,General Supplies/Materials,3025,09/08/2018,08/08/2018,LANYARDS TOMORROW,LETCHWORTH GA,GBR,SG6 2TS,REDACTED,556*********3063,5399,MISCELLANEOUS GENERAL MERCHANDISE STORES,18,Pound Sterling (826),1,18,Debit,1.52763E+22,02/09/2018,GLOUCESTER CC
Gloucester City Council,23UE,Civica Admin Charges,BI002,Public Transport - Staff,2402,20/08/2018,17/08/2018,Trainline,London,GBR,1445,REDACTED,556*********3063,4112,PASSENGER RAILWAYS,46,Pound Sterling (826),1,46,Debit,8.51301E+22,02/09/2018,GLOUCESTER CC
Gloucester City Council,23UE,Civica Admin Charges,BI002,Professional Advice/Consultants fees,3952,23/08/2018,22/08/2018,HMCOURTS-SERVICE.G,1452420100,,GL12ZG,REDACTED,556*********3063,9222,FINES,490.5,Pound Sterling (826),1,490.5,Debit,8.54815E+22,02/09/2018,GLOUCESTER CC
Gloucester City Council,23UE,Civica Admin Charges,BI002,Professional Advice/Consultants fees,3952,24/08/2018,23/08/2018,SurveyMonkey,Dublin,IRL,4,REDACTED,556*********3063,7372,COMPUTER AND DATA PROCESSING SERVICES,336,Pound Sterling (826),1,336,Debit,1.52657E+22,02/09/2018,GLOUCESTER CC
Gloucester City Council,23UE,Financial Services,FS004,External Training Course Fees,550,30/08/2018,29/08/2018,WWW.AAT-ORG.UK,LONDON EC1R,,EC1A 4HY,REDACTED,556*********3063,8931,"ACCOUNTING, AUDITING AND BOOKKEEPING SERVICES",94,Pound Sterling (826),1,94,Debit,5.5542E+22,02/09/2018,GLOUCESTER CC
